Workbook

Sheet Quota Changes
A1: Name | B1: Quota old | C1: As Fraction | D1: Quota old normed | E1: As Fraction | F1: Quota new | G1: As Fraction | H1: Quota new normed | I1: As Fraction | J1: Largest Denominator | K1: Same Denominator | L1: Change | M1: As Fraction | N1: Largest Denominator | O1: Same Denominator
A2: Total | B2: =SUM(B3:B12) -> 1 | C2: =IF(B2=0,"",_xlfn.TEXTJOIN("/",TRUE,sbNRN(B2,999,0.0000000001))) -> 1/1 | D2: =SUM(D3:D12) -> 1 | E2: =IF(D2=0,"",_xlfn.TEXTJOIN("/",TRUE,sbNRN(D2,999,0.0000000001))) -> 1/1 | F2: =SUM(F3:F12) -> 0.6666666667 | G2: =IF(F2=0,"",_xlfn.TEXTJOIN("/",TRUE,sbNRN(F2,999,0.0000000001))) -> 2/3 | H2: =SUM(H3:H12) -> 1 | I2: =IF(H2=0,"",_xlfn.TEXTJOIN("/",TRUE,sbNRN(H2,999,0.0000000001))) -> 1/1 | J2: =MAX(J3:J12) -> 6 | K2: =IF(H2:H12<>0,ROUND(H2:H12*J2,0) & "/" & J2,"") -> 6/6 | L2: =H2:H12-D2:D12 -> 0 | M2: =IF(L2=0,"",_xlfn.TEXTJOIN("/",TRUE,sbNRN(L2,999,0.0000000001))) ->  | N2: =MAX(N3:N12) -> 6 | O2: =IF(L2:L12<>0,ROUND(L2:L12*N2,0) & "/" & N2,"") -> 
A3: Miller | B3: =1/3 -> 0.3333333333 | C3: =IF(B3=0,"",_xlfn.TEXTJOIN("/",TRUE,sbNRN(B3,999,0.0000000001))) -> 1/3 | D3: =B3:B12/B2 -> 0.3333333333 | E3: =IF(D3=0,"",_xlfn.TEXTJOIN("/",TRUE,sbNRN(D3,999,0.0000000001))) -> 1/3 | F3: =1/3 -> 0.3333333333 | G3: =IF(F3=0,"",_xlfn.TEXTJOIN("/",TRUE,sbNRN(F3,999,0.0000000001))) -> 1/3 | H3: =F3:F12/F2 -> 0.5 | I3: =IF(H3=0,"",_xlfn.TEXTJOIN("/",TRUE,sbNRN(H3,999,0.0000000001))) -> 1/2 | J3: =VALUE("0" & RIGHT(I3:I12,LEN(I3:I12)-IFERROR(SEARCH("/",I3:I12),0))) -> 2 | K3: 3/6 | L3: 0.1666666667 | M3: =IF(L3=0,"",_xlfn.TEXTJOIN("/",TRUE,sbNRN(L3,999,0.0000000001))) -> 1/6 | N3: =VALUE("0" & RIGHT(M3:M12,LEN(M3:M12)-IFERROR(SEARCH("/",M3:M12),0))) -> 6 | O3: 1/6
A4: Smith | B4: =1/3 -> 0.3333333333 | C4: =IF(B4=0,"",_xlfn.TEXTJOIN("/",TRUE,sbNRN(B4,999,0.0000000001))) -> 1/3 | D4: 0.3333333333 | E4: =IF(D4=0,"",_xlfn.TEXTJOIN("/",TRUE,sbNRN(D4,999,0.0000000001))) -> 1/3 | G4: =IF(F4=0,"",_xlfn.TEXTJOIN("/",TRUE,sbNRN(F4,999,0.0000000001))) ->  | H4: 0 | I4: =IF(H4=0,"",_xlfn.TEXTJOIN("/",TRUE,sbNRN(H4,999,0.0000000001))) ->  | J4: 0 | L4: -0.3333333333 | M4: =IF(L4=0,"",_xlfn.TEXTJOIN("/",TRUE,sbNRN(L4,999,0.0000000001))) -> -1/3 | N4: 3 | O4: -2/6
A5: Schulz | B5: =1/3 -> 0.3333333333 | C5: =IF(B5=0,"",_xlfn.TEXTJOIN("/",TRUE,sbNRN(B5,999,0.0000000001))) -> 1/3 | D5: 0.3333333333 | E5: =IF(D5=0,"",_xlfn.TEXTJOIN("/",TRUE,sbNRN(D5,999,0.0000000001))) -> 1/3 | G5: =IF(F5=0,"",_xlfn.TEXTJOIN("/",TRUE,sbNRN(F5,999,0.0000000001))) ->  | H5: 0 | I5: =IF(H5=0,"",_xlfn.TEXTJOIN("/",TRUE,sbNRN(H5,999,0.0000000001))) ->  | J5: 0 | L5: -0.3333333333 | M5: =IF(L5=0,"",_xlfn.TEXTJOIN("/",TRUE,sbNRN(L5,999,0.0000000001))) -> -1/3 | N5: 3 | O5: -2/6
A6: Schulz Widow | C6: =IF(B6=0,"",_xlfn.TEXTJOIN("/",TRUE,sbNRN(B6,999,0.0000000001))) ->  | D6: 0 | E6: =IF(D6=0,"",_xlfn.TEXTJOIN("/",TRUE,sbNRN(D6,999,0.0000000001))) ->  | F6: =1/3 * 2/3 -> 0.2222222222 | G6: =IF(F6=0,"",_xlfn.TEXTJOIN("/",TRUE,sbNRN(F6,999,0.0000000001))) -> 2/9 | H6: 0.3333333333 | I6: =IF(H6=0,"",_xlfn.TEXTJOIN("/",TRUE,sbNRN(H6,999,0.0000000001))) -> 1/3 | J6: 3 | K6: 2/6 | L6: 0.3333333333 | M6: =IF(L6=0,"",_xlfn.TEXTJOIN("/",TRUE,sbNRN(L6,999,0.0000000001))) -> 1/3 | N6: 3 | O6: 2/6
A7: Schulz Child | C7: =IF(B7=0,"",_xlfn.TEXTJOIN("/",TRUE,sbNRN(B7,999,0.0000000001))) ->  | D7: 0 | E7: =IF(D7=0,"",_xlfn.TEXTJOIN("/",TRUE,sbNRN(D7,999,0.0000000001))) ->  | F7: =1/3 * 1/3 -> 0.1111111111 | G7: =IF(F7=0,"",_xlfn.TEXTJOIN("/",TRUE,sbNRN(F7,999,0.0000000001))) -> 1/9 | H7: 0.1666666667 | I7: =IF(H7=0,"",_xlfn.TEXTJOIN("/",TRUE,sbNRN(H7,999,0.0000000001))) -> 1/6 | J7: 6 | K7: 1/6 | L7: 0.1666666667 | M7: =IF(L7=0,"",_xlfn.TEXTJOIN("/",TRUE,sbNRN(L7,999,0.0000000001))) -> 1/6 | N7: 6 | O7: 1/6
C8: =IF(B8=0,"",_xlfn.TEXTJOIN("/",TRUE,sbNRN(B8,999,0.0000000001))) ->  | D8: 0 | E8: =IF(D8=0,"",_xlfn.TEXTJOIN("/",TRUE,sbNRN(D8,999,0.0000000001))) ->  | G8: =IF(F8=0,"",_xlfn.TEXTJOIN("/",TRUE,sbNRN(F8,999,0.0000000001))) ->  | H8: 0 | I8: =IF(H8=0,"",_xlfn.TEXTJOIN("/",TRUE,sbNRN(H8,999,0.0000000001))) ->  | J8: 0 | L8: 0 | M8: =IF(L8=0,"",_xlfn.TEXTJOIN("/",TRUE,sbNRN(L8,999,0.0000000001))) ->  | N8: 0
C9: =IF(B9=0,"",_xlfn.TEXTJOIN("/",TRUE,sbNRN(B9,999,0.0000000001))) ->  | D9: 0 | E9: =IF(D9=0,"",_xlfn.TEXTJOIN("/",TRUE,sbNRN(D9,999,0.0000000001))) ->  | G9: =IF(F9=0,"",_xlfn.TEXTJOIN("/",TRUE,sbNRN(F9,999,0.0000000001))) ->  | H9: 0 | I9: =IF(H9=0,"",_xlfn.TEXTJOIN("/",TRUE,sbNRN(H9,999,0.0000000001))) ->  | J9: 0 | L9: 0 | M9: =IF(L9=0,"",_xlfn.TEXTJOIN("/",TRUE,sbNRN(L9,999,0.0000000001))) ->  | N9: 0
C10: =IF(B10=0,"",_xlfn.TEXTJOIN("/",TRUE,sbNRN(B10,999,0.0000000001))) ->  | D10: 0 | E10: =IF(D10=0,"",_xlfn.TEXTJOIN("/",TRUE,sbNRN(D10,999,0.0000000001))) ->  | G10: =IF(F10=0,"",_xlfn.TEXTJOIN("/",TRUE,sbNRN(F10,999,0.0000000001))) ->  | H10: 0 | I10: =IF(H10=0,"",_xlfn.TEXTJOIN("/",TRUE,sbNRN(H10,999,0.0000000001))) ->  | J10: 0 | L10: 0 | M10: =IF(L10=0,"",_xlfn.TEXTJOIN("/",TRUE,sbNRN(L10,999,0.0000000001))) ->  | N10: 0
C11: =IF(B11=0,"",_xlfn.TEXTJOIN("/",TRUE,sbNRN(B11,999,0.0000000001))) ->  | D11: 0 | E11: =IF(D11=0,"",_xlfn.TEXTJOIN("/",TRUE,sbNRN(D11,999,0.0000000001))) ->  | G11: =IF(F11=0,"",_xlfn.TEXTJOIN("/",TRUE,sbNRN(F11,999,0.0000000001))) ->  | H11: 0 | I11: =IF(H11=0,"",_xlfn.TEXTJOIN("/",TRUE,sbNRN(H11,999,0.0000000001))) ->  | J11: 0 | L11: 0 | M11: =IF(L11=0,"",_xlfn.TEXTJOIN("/",TRUE,sbNRN(L11,999,0.0000000001))) ->  | N11: 0
C12: =IF(B12=0,"",_xlfn.TEXTJOIN("/",TRUE,sbNRN(B12,999,0.0000000001))) ->  | D12: 0 | E12: =IF(D12=0,"",_xlfn.TEXTJOIN("/",TRUE,sbNRN(D12,999,0.0000000001))) ->  | G12: =IF(F12=0,"",_xlfn.TEXTJOIN("/",TRUE,sbNRN(F12,999,0.0000000001))) ->  | H12: 0 | I12: =IF(H12=0,"",_xlfn.TEXTJOIN("/",TRUE,sbNRN(H12,999,0.0000000001))) ->  | J12: 0 | L12: 0 | M12: =IF(L12=0,"",_xlfn.TEXTJOIN("/",TRUE,sbNRN(L12,999,0.0000000001))) ->  | N12: 0
A14: Note: | B14: Enter values into these fields only!

Sheet 17 Camels
A1: Name | B1: Quota old | C1: As Fraction | D1: Quota old normed | E1: As Fraction | F1: Quota new | G1: As Fraction | H1: Quota new normed | I1: As Fraction | J1: Largest Denominator | K1: Same Denominator | L1: Change | M1: As Fraction | N1: Largest Denominator | O1: Same Denominator
A2: Total | B2: =SUM(B3:B6) -> 0.9444444444 | C2: =IF(B2=0,"",_xlfn.TEXTJOIN("/",TRUE,sbNRN(B2,999,0.0000000001))) -> 17/18 | D2: =SUM(D3:D6) -> 1 | E2: =IF(D2=0,"",_xlfn.TEXTJOIN("/",TRUE,sbNRN(D2,999,0.0000000001))) -> 1/1 | F2: =SUM(F3:F6) -> 1 | G2: =IF(F2=0,"",_xlfn.TEXTJOIN("/",TRUE,sbNRN(F2,999,0.0000000001))) -> 1/1 | H2: =SUM(H3:H6) -> 1 | I2: =IF(H2=0,"",_xlfn.TEXTJOIN("/",TRUE,sbNRN(H2,999,0.0000000001))) -> 1/1 | J2: =MAX(J3:J6) -> 18 | K2: =IF(H2:H6<>0,ROUND(H2:H6*J2,0) & "/" & J2,"") -> 18/18 | L2: =H2:H6-D2:D6 -> 0 | M2: =IF(L2=0,"",_xlfn.TEXTJOIN("/",TRUE,sbNRN(L2,999,0.0000000001))) ->  | N2: =MAX(N3:N6) -> 153 | O2: =IF(L2:L6<>0,ROUND(L2:L6*N2,0) & "/" & N2,"") -> 
A3: Eldest son | B3: =1/2 -> 0.5 | C3: =IF(B3=0,"",_xlfn.TEXTJOIN("/",TRUE,sbNRN(B3,999,0.0000000001))) -> 1/2 | D3: =B3:B6/B2 -> 0.5294117647 | E3: =IF(D3=0,"",_xlfn.TEXTJOIN("/",TRUE,sbNRN(D3,999,0.0000000001))) -> 9/17 | F3: =1/2 -> 0.5 | G3: =IF(F3=0,"",_xlfn.TEXTJOIN("/",TRUE,sbNRN(F3,999,0.0000000001))) -> 1/2 | H3: =F3:F6/F2 -> 0.5 | I3: =IF(H3=0,"",_xlfn.TEXTJOIN("/",TRUE,sbNRN(H3,999,0.0000000001))) -> 1/2 | J3: =VALUE("0" & RIGHT(I3:I6,LEN(I3:I6)-IFERROR(SEARCH("/",I3:I6),0))) -> 2 | K3: 9/18 | L3: -0.02941176471 | M3: =IF(L3=0,"",_xlfn.TEXTJOIN("/",TRUE,sbNRN(L3,999,0.0000000001))) -> -1/34 | N3: =VALUE("0" & RIGHT(M3:M6,LEN(M3:M6)-IFERROR(SEARCH("/",M3:M6),0))) -> 34 | O3: -5/153
A4: Second son | B4: =1/3 -> 0.3333333333 | C4: =IF(B4=0,"",_xlfn.TEXTJOIN("/",TRUE,sbNRN(B4,999,0.0000000001))) -> 1/3 | D4: 0.3529411765 | E4: =IF(D4=0,"",_xlfn.TEXTJOIN("/",TRUE,sbNRN(D4,999,0.0000000001))) -> 6/17 | F4: =1/3 -> 0.3333333333 | G4: =IF(F4=0,"",_xlfn.TEXTJOIN("/",TRUE,sbNRN(F4,999,0.0000000001))) -> 1/3 | H4: 0.3333333333 | I4: =IF(H4=0,"",_xlfn.TEXTJOIN("/",TRUE,sbNRN(H4,999,0.0000000001))) -> 1/3 | J4: 3 | K4: 6/18 | L4: -0.01960784314 | M4: =IF(L4=0,"",_xlfn.TEXTJOIN("/",TRUE,sbNRN(L4,999,0.0000000001))) -> -1/51 | N4: 51 | O4: -3/153
A5: Youngest son | B5: =1/9 -> 0.1111111111 | C5: =IF(B5=0,"",_xlfn.TEXTJOIN("/",TRUE,sbNRN(B5,999,0.0000000001))) -> 1/9 | D5: 0.1176470588 | E5: =IF(D5=0,"",_xlfn.TEXTJOIN("/",TRUE,sbNRN(D5,999,0.0000000001))) -> 2/17 | F5: =1/9 -> 0.1111111111 | G5: =IF(F5=0,"",_xlfn.TEXTJOIN("/",TRUE,sbNRN(F5,999,0.0000000001))) -> 1/9 | H5: 0.1111111111 | I5: =IF(H5=0,"",_xlfn.TEXTJOIN("/",TRUE,sbNRN(H5,999,0.0000000001))) -> 1/9 | J5: 9 | K5: 2/18 | L5: -0.006535947712 | M5: =IF(L5=0,"",_xlfn.TEXTJOIN("/",TRUE,sbNRN(L5,999,0.0000000001))) -> -1/153 | N5: 153 | O5: -1/153
A6: Wise man | C6: =IF(B6=0,"",_xlfn.TEXTJOIN("/",TRUE,sbNRN(B6,999,0.0000000001))) ->  | D6: 0 | E6: =IF(D6=0,"",_xlfn.TEXTJOIN("/",TRUE,sbNRN(D6,999,0.0000000001))) ->  | F6: =1/18 -> 0.05555555556 | G6: =IF(F6=0,"",_xlfn.TEXTJOIN("/",TRUE,sbNRN(F6,999,0.0000000001))) -> 1/18 | H6: 0.05555555556 | I6: =IF(H6=0,"",_xlfn.TEXTJOIN("/",TRUE,sbNRN(H6,999,0.0000000001))) -> 1/18 | J6: 18 | K6: 1/18 | L6: 0.05555555556 | M6: =IF(L6=0,"",_xlfn.TEXTJOIN("/",TRUE,sbNRN(L6,999,0.0000000001))) -> 1/18 | N6: 18 | O6: 9/153
A8: Note: | B8: Enter values into these fields only!
A9: A father left 17 camels to his three sons and, according to the will, the eldest son should be given a half of all camels, the middle son the one-third part and the youngest son the one-ninth. This is hard to do, but a wise man helped the sons: he added his own camel, the oldest son took 18/2=9 camels, the second son took 18/3=6 camels, the third son 18/9=2 camels and the wise man took his own camel and went away.
